bitfinex/quotes_SOLUSD_20250601
["timestamp","ask_amount","ask_price","bid_price","bid_amount"]
[1748790952154,17.90196808,153.24,153.18,20.4537626]
[1748790952461,20.4537626,153.23,153.19,20.4537626]
[1748790952845,20.4537626,153.22,153.18,20.4537626]
[1748790953548,6.52698909,153.21,153.18,20.4537626]
[1748790954062,20.4537626,153.2,153.16,20.4537626]
[1748790954257,6.52698909,153.21,153.15,60.4737626]
[1748790954258,20.4537626,153.19,153.15,60.4737626]
[1748790954964,20.4537626,153.19,153.15,20.4537626]
[1748790955765,6.52826739,153.18,153.15,20.4537626]
[1748790956165,6.52826739,153.18,153.14,10.4]
[1748790956338,6.52826739,153.18,153.15,20.4537626]
[1748790959068,6.52798292,153.19,153.16,20.4537626]
[1748790959653,20.4537626,153.23,153.18,20.4537626]
[1748790959858,38.35570795,153.24,153.19,20.4537626]
[1748790960168,20.4537626,153.23,153.19,20.4537626]
[1748790960343,26.97989977,153.23,153.19,20.4537626]
[1748790964776,20.4537626,153.22,153.18,20.4537626]
[1748790964981,6.52698909,153.21,153.18,20.4537626]
[1748790965149,6.52698909,153.21,153.15,6.52939025]
[1748790965349,6.52698909,153.21,153.18,20.4537626]
[1748790967777,6.52698909,153.21,153.19,20.4537626]
[1748790971202,6.52656311,153.22,153.19,20.4537626]
[1748790971507,26.98032571,153.22,153.18,20.4537626]
[1748790974795,26.98032571,153.22,153.15,6.52939025]
[1748790975003,26.98032571,153.22,153.18,20.4537626]
[1748790976289,26.98032571,153.22,153.14,36.4]
[1748790976290,20.4537626,153.21,153.14,36.4]
[1748790976504,20.4537626,153.21,153.16,20.4537626]
[1748790976710,20.4537626,153.21,153.17,20.4537626]
[1748790977084,43.29673348,153.22,153.17,20.4537626]
[1748790979815,20.4537626,153.21,153.17,20.4537626]
[1748790980135,20.4537626,153.21,153.14,10.4]
[1748790980292,20.4537626,153.21,153.16,20.4537626]
[1748790981600,20.4537626,153.21,153.14,16.92990517]
[1748790981818,20.4537626,153.21,153.16,20.4537626]
[1748790982297,6.52741514,153.2,153.17,20.4537626]
[1748790984320,26.98075169,153.21,153.16,20.4537626]
[1748790986421,20.4537626,153.2,153.16,20.4537626]
[1748790987349,20.4537626,153.21,153.17,20.4537626]
[1748790988434,6.52741514,153.2,153.17,20.4537626]
[1748790988747,6.52741514,153.2,153.14,16.92994876]
[1748790988748,6.52741514,153.2,153.16,20.4537626]
[1748790990129,6.52741514,153.2,153.17,20.4537626]
[1748790990546,26.98117774,153.2,153.14,10.4]
[1748790990850,20.4537626,153.19,153.14,30.8537626]
[1748790991353,26.98117774,153.2,153.14,16.92993407]
[1748790991554,6.52741514,153.2,153.15,20.4537626]
[1748790991737,26.98117774,153.2,153.15,20.4537626]
[1748790993226,6.52741514,153.2,153.15,20.4537626]
[1748790994441,6.52698909,153.21,153.16,20.4537626]
[1748790994630,26.98075169,153.21,153.16,20.4537626]
[1748790995338,26.98049868,153.22,153.17,20.4537626]
[1748790995542,6.52673608,153.22,153.19,20.4537626]
[1748790997029,6.52613717,153.23,153.19,20.4537626]
[1748790999150,26.97989977,153.23,153.19,20.4537626]
[1748791000576,38.94650903,153.24,153.2,20.4537626]
[1748791000878,6.52584643,153.24,153.21,20.4537626]
[1748791001968,7.2796977,153.25,153.22,20.4537626]
[1748791002157,13.8050698,153.25,153.22,20.4537626]
[1748791002756,11.9411,153.28,153.24,20.4537626]
[1748791002958,22.0148626,153.28,153.24,20.4537626]
[1748791004073,6.52457915,153.27,153.24,20.4537626]
[1748791006180,204.41244122,153.29,153.24,20.4537626]
[1748791006358,6.52400835,153.28,153.24,20.4537626]
[1748791007274,6.52400835,153.28,153.26,20.4537626]
[1748791008791,6.52366635,153.29,153.27,20.4537626]
[1748791009797,6.5231572,153.3,153.27,20.4537626]
[1748791009983,6.5231572,153.3,153.22,26.0]
[1748791010225,6.5231572,153.3,153.26,20.4537626]
[1748791010386,6.5231572,153.3,153.27,20.4537626]
[1748791010984,6.5231572,153.3,153.28,20.4537626]
[1748791011784,6.52273172,153.31,153.28,20.4537626]
[1748791013194,6.52273172,153.31,153.27,20.4537626]
[1748791013493,20.4537626,153.3,153.26,20.4537626]
[1748791013873,6.52358275,153.29,153.25,20.4537626]
[1748791014078,26.97734535,153.29,153.25,20.4537626]
[1748791014285,26.97734535,153.29,153.24,30.8337626]
[1748791015084,26.97734535,153.29,153.25,20.4537626]
[1748791015280,6.52273172,153.31,153.28,20.4537626]
[1748791015482,13.15625264,153.32,153.29,20.4537626]
[1748791015684,13.15625264,153.32,153.3,20.4537626]
[1748791018803,41.5407,153.36,153.31,20.4537626]
[1748791018804,1.5807,153.36,153.31,20.4537626]
[1748791019001,1.5807,153.36,153.32,20.4537626]
[1748791020109,6.52103032,153.35,153.32,20.4537626]
[1748791020296,6.52103032,153.35,153.33,20.4537626]
[1748791020606,13.18133092,153.37,153.34,20.4537626]
[1748791020910,13.18133092,153.37,153.35,20.4537626]
[1748791021404,13.18133092,153.37,153.34,20.4537626]
[1748791023309,13.18133092,153.37,153.31,6.52270754]
[1748791023310,6.66107063,153.37,153.35,20.4537626]
[1748791023494,6.66107063,153.37,153.32,6.522177]
[1748791023495,8.17942222,153.4,153.36,20.4537626]
[1748791023705,8.17942222,153.4,153.37,20.4537626]
[1748791024105,6.51932222,153.4,153.38,20.4537626]
[1748791024420,13.1122223,153.42,153.39,20.4537626]
[1748791024919,13.1122223,153.42,153.4,20.4537626]
[1748791025129,6.59401235,153.42,153.41,20.4537626]
[1748791026425,171.51875742,153.46,153.41,20.4537626]
[1748791026426,6.51645199,153.46,153.41,20.4537626]
[1748791026593,38.28128203,153.49,153.45,20.4537626]
[1748791026993,26.9692695,153.48,153.44,20.4537626]
[1748791027213,26.9692695,153.48,153.4,32.51878927]
[1748791027214,26.9692695,153.48,153.43,20.4537626]
[1748791027909,20.4537626,153.46,153.41,20.4537626]
[1748791028317,39.10341146,153.47,153.42,20.4537626]
[1748791028531,6.51635605,153.46,153.43,20.4537626]
[1748791029515,26.97011865,153.46,153.41,20.4537626]
[1748791030210,26.97011865,153.46,153.42,20.4537626]
[1748791030534,6.51635605,153.46,153.43,20.4537626]
[1748791031018,26.97011865,153.46,153.42,20.4537626]
[1748791031931,6.51635605,153.46,153.42,20.4537626]
[1748791032951,6.51635605,153.46,153.43,20.4537626]
[1748791033453,6.5155069,153.48,153.45,20.4537626]
[1748791033837,20.4537626,153.47,153.43,20.4537626]
[1748791034571,20.4537626,153.46,153.42,20.4537626]
[1748791035357,6.51678071,153.45,153.42,20.4537626]
[1748791036727,6.51678071,153.45,153.39,50.28]
[1748791036728,6.51678071,153.45,153.41,20.4537626]
[1748791036929,20.4537626,153.44,153.38,26.0]
[1748791037163,26.97054331,153.45,153.41,20.4537626]
[1748791039854,16.29142492,153.46,153.41,20.4537626]
[1748791040156,36.74518752,153.46,153.42,20.4537626]
[1748791040454,26.96969405,153.47,153.43,20.4537626]
[1748791041151,6.51593145,153.47,153.43,20.4537626]
[1748791041756,20.4537626,153.47,153.43,20.4537626]
[1748791042755,6.51635605,153.46,153.43,20.4537626]
[1748791043754,6.51635605,153.46,153.44,20.4537626]
[1748791045461,22.80427416,153.48,153.44,20.4537626]
[1748791047348,6.5155069,153.48,153.45,20.4537626]
[1748791050483,6.5155069,153.48,153.41,10.34]
[1748791050684,6.5155069,153.48,153.45,20.4537626]
[1748791051048,6.5155069,153.48,153.46,20.4537626]
[1748791051669,25.00525036,153.52,153.47,20.4537626]
[1748791051949,45.45901296,153.52,153.48,20.4537626]
[1748791052460,6.5142336,153.51,153.48,20.4537626]
[1748791053564,26.9679962,153.51,153.47,20.4537626]
[1748791054374,6.5142336,153.51,153.48,20.4537626]
[1748791055351,31.5192192,153.52,153.5,20.4537626]
[1748791055559,6.51349762,153.53,153.51,20.4537626]
[1748791056770,6.51296079,153.54,153.51,20.4537626]
[1748791056977,26.96672339,153.54,153.5,20.4537626]
[1748791057864,26.96672339,153.54,153.47,39.9]
[1748791057865,22.79536276,153.54,153.49,20.4537626]
[1748791058075,20.4537626,153.53,153.49,20.4537626]
[1748791059181,6.51380927,153.52,153.49,20.4537626]
[1748791062387,43.25209505,153.52,153.48,20.4537626]
[1748791062885,6.51380927,153.52,153.49,20.4537626]
[1748791063081,6.51380927,153.52,153.51,20.4537626]
[1748791063288,6.51380927,153.52,153.5,20.4537626]
[1748791063464,6.51380927,153.52,153.47,39.9]
[1748791063654,6.51296079,153.54,153.5,20.4537626]
[1748791064492,6.51296079,153.54,153.51,20.4537626]
[1748791066571,6.51296079,153.54,153.5,20.4537626]
[1748791067183,26.96672339,153.54,153.5,20.4537626]
[1748791068872,6.51296079,153.54,153.5,20.4537626]
[1748791069590,26.96672339,153.54,153.5,20.4537626]
[1748791070098,6.51296079,153.54,153.52,20.4537626]
[1748791071181,6.51253663,153.55,153.52,20.4537626]
[1748791072882,6.51253663,153.55,153.53,20.4537626]
[1748791074877,6.51211252,153.56,153.53,20.4537626]
[1748791075081,13.48447899,153.57,153.55,20.4537626]
[1748791075278,13.48447899,153.57,153.56,20.4537626]
[1748791075506,6.97266073,153.57,153.56,20.4537626]
[1748791076195,6.51099111,153.59,153.56,20.4537626]
[1748791076395,6.51099111,153.59,153.57,20.4537626]
[1748791076978,6.51041666,153.6,153.57,20.4537626]
[1748791077279,6.51041666,153.6,153.58,20.4537626]
[1748791078087,6.51041666,153.6,153.52,20.4537626]
[1748791078295,26.96417926,153.6,153.52,20.4537626]
[1748791078592,26.96417926,153.6,153.56,20.4537626]
[1748791079187,43.24022092,153.6,153.51,50.22]
[1748791079388,43.24022092,153.6,153.55,20.4537626]
[1748791080417,20.4537626,153.57,153.53,20.4537626]
[1748791080594,20.4537626,153.56,153.52,20.4537626]
[1748791081703,36.7321469,153.58,153.53,20.4537626]
[1748791081889,36.7321469,153.58,153.54,20.4537626]
[1748791082997,6.51168848,153.57,153.54,20.4537626]
[1748791083710,20.4537626,153.58,153.55,20.4537626]
[1748791083711,6.5114317,153.58,153.55,20.4537626]
[1748791084021,6.5114317,153.58,153.56,20.4537626]
[1748791085206,6.51084054,153.59,153.56,20.4537626]
[1748791085920,6.51084054,153.59,153.55,20.4537626]
[1748791086222,6.51084054,153.59,153.56,20.4537626]
[1748791086611,6.5105731,153.6,153.57,20.4537626]
[1748791089126,6.5105731,153.6,153.56,20.4537626]
[1748791089617,7.08863772,153.64,153.59,20.4537626]
[1748791089918,7.08863772,153.64,153.55,6.51223029]
[1748791089919,27.54240032,153.64,153.6,20.4537626]
[1748791090220,6.50914534,153.63,153.6,20.4537626]
[1748791090522,6.50914534,153.63,153.61,20.4537626]
[1748791090721,6.50914534,153.63,153.6,20.4537626]
[1748791091396,6.50914534,153.63,153.61,20.4537626]
[1748791092122,7.08863772,153.64,153.62,20.4537626]
[1748791092311,10.32,153.67,153.63,20.4537626]
[1748791092513,6.50787452,153.66,153.63,20.4537626]
[1748791094344,6.50787452,153.66,153.62,20.4537626]
[1748791094705,6.50787452,153.66,153.63,20.4537626]
[1748791094914,6.50702758,153.68,153.64,20.4537626]
[1748791095241,6.50702758,153.68,153.67,20.4537626]
[1748791095526,6.50533437,153.72,153.64,36.32]
[1748791095722,6.50533437,153.72,153.68,20.4537626]
[1748791095925,26.95909697,153.72,153.68,20.4537626]
[1748791096125,26.95909697,153.72,153.69,20.4537626]
[1748791096126,6.50533437,153.72,153.69,20.4537626]
[1748791096424,6.50406504,153.75,153.71,20.4537626]
[1748791096632,6.50406504,153.75,153.72,20.4537626]
[1748791098420,6.50406504,153.75,153.67,33.9099]
[1748791098421,6.50406504,153.75,153.71,20.4537626]
[1748791098630,6.50406504,153.75,153.72,20.4537626]
[1748791098815,6.50406504,153.75,153.73,20.4537626]
[1748791099126,6.50406504,153.75,153.69,50.16]
[1748791099127,6.50406504,153.75,153.72,20.4537626]
[1748791099431,6.50364203,153.76,153.72,20.4537626]
[1748791099632,6.5027962,153.78,153.75,20.4537626]
[1748791099925,6.50250108,153.79,153.77,20.4537626]
[1748791100434,6.50250108,153.79,153.76,20.4537626]
[1748791100926,26.95626368,153.79,153.74,20.4537626]
[1748791102132,43.21219709,153.79,153.74,20.4537626]
[1748791102332,22.75843449,153.79,153.74,20.4537626]
[1748791102635,20.4537626,153.78,153.74,20.4537626]
[1748791103611,6.50321909,153.77,153.74,20.4537626]
[1748791103809,20.4537626,153.75,153.67,7.9099]
[1748791104130,20.4537626,153.75,153.7,20.4537626]
[1748791104527,20.4537626,153.75,153.71,20.4537626]
[1748791104922,45.22523574,153.8,153.73,20.4537626]
[1748791105127,20.4537626,153.78,153.74,20.4537626]
[1748791105328,20.4537626,153.79,153.75,20.4537626]
[1748791105648,26.95613596,153.79,153.75,20.4537626]
[1748791106846,6.50237336,153.79,153.75,20.4537626]
[1748791107543,6.49899265,153.87,153.78,20.4537626]
[1748791107744,6.49899265,153.87,153.81,20.4537626]
[1748791107745,20.4537626,153.86,153.81,20.4537626]
[1748791107957,20.4537626,153.86,153.82,20.4537626]
[1748791108657,6.4998375,153.85,153.81,20.4537626]
[1748791109022,20.4537626,153.84,153.8,20.4537626]
[1748791109249,20.4537626,153.84,153.78,39.86]
[1748791109250,20.4537626,153.84,153.79,20.4537626]
[1748791110233,20.4537626,153.83,153.79,20.4537626]
[1748791110556,22.74943126,153.85,153.78,20.4537626]
[1748791110557,6.50152785,153.81,153.78,20.4537626]
[1748791110761,26.95529045,153.81,153.77,20.4537626]
[1748791111123,6.50152785,153.81,153.77,20.4537626]
[1748791112631,41.40055889,153.84,153.78,20.4537626]
[1748791112935,20.4537626,153.83,153.78,20.4537626]
[1748791113328,43.20467263,153.84,153.79,20.4537626]
[1748791113734,6.50110518,153.82,153.79,20.4537626]
[1748791115457,6.50075407,153.83,153.81,20.4537626]
[1748791116463,26.95402261,153.84,153.8,20.4537626]
[1748791116949,42.24831241,153.87,153.83,20.4537626]
[1748791116950,6.49899265,153.87,153.83,20.4537626]
[1748791117157,6.49899265,153.87,153.85,20.4537626]
[1748791118129,6.49861274,153.88,153.81,26.0]
[1748791118337,18.65547688,154.03,153.87,20.4537626]
[1748791118338,6.49688149,153.92,153.87,20.4537626]
[1748791118545,6.49688149,153.92,153.9,20.4537626]
[1748791118745,6.49688149,153.92,153.86,39.88]
[1748791118746,6.49688149,153.92,153.89,20.4537626]
[1748791118944,26.95064409,153.92,153.88,20.4537626]
[1748791119181,20.4537626,153.9,153.86,20.4537626]
[1748791119344,20.4537626,153.9,153.82,72.38110518]
[1748791119665,20.4537626,153.9,153.82,65.88]
[1748791119846,20.4537626,153.89,153.84,20.4537626]
[1748791120033,6.49857031,153.88,153.84,20.4537626]
[1748791120850,20.4537626,153.87,153.83,20.4537626]
[1748791121062,20.4537626,153.87,153.81,10.3]
[1748791121266,20.4537626,153.87,153.83,20.4537626]
[1748791122568,6.49941505,153.86,153.83,20.4537626]
[1748791124847,20.4537626,153.84,153.77,10.3]
[1748791125044,20.4537626,153.84,153.77,30.7537626]
[1748791125045,20.4537626,153.81,153.77,30.7537626]
[1748791125458,20.4537626,153.82,153.78,20.4537626]
[1748791126274,6.50152785,153.81,153.78,20.4537626]
[1748791127970,6.50152785,153.81,153.77,30.7537626]
[1748791129083,26.95529045,153.81,153.77,30.7537626]
[1748791129259,26.95529045,153.81,153.77,20.4537626]
[1748791129650,6.50152785,153.81,153.78,20.4537626]
[1748791130057,6.50152785,153.81,153.77,20.4537626]
[1748791131647,20.4537626,153.81,153.74,32.50438966]
[1748791131848,20.4537626,153.81,153.77,20.4537626]
[1748791132268,20.4537626,153.79,153.75,20.4537626]
[1748791132483,20.4537626,153.79,153.74,46.4537626]
[1748791132781,20.4537626,153.78,153.73,10.3]
[1748791132955,20.4537626,153.77,153.73,30.7537626]
[1748791133576,20.4537626,153.78,153.73,30.7537626]
[1748791134668,6.50321909,153.77,153.73,10.3]
[1748791134846,16.25440152,153.81,153.76,20.4537626]
[1748791134847,26.95571318,153.8,153.76,20.4537626]
[1748791135043,6.50195058,153.8,153.76,20.4537626]
[1748791136467,22.75592937,153.81,153.77,20.4537626]
[1748791136662,6.50152785,153.81,153.77,20.4537626]
[1748791137177,26.95529045,153.81,153.77,20.4537626]
[1748791137981,6.50152785,153.81,153.76,20.4537626]
[1748791138280,26.95529045,153.81,153.76,20.4537626]
[1748791138975,6.50110518,153.82,153.76,20.4537626]
[1748791139279,20.4537626,153.81,153.77,20.4537626]
[1748791140667,20.4537626,153.79,153.75,20.4537626]
[1748791141054,26.95698169,153.77,153.73,30.7537626]
[1748791141753,20.4537626,153.75,153.69,16.8007]
[1748791142072,20.4537626,153.75,153.71,20.4537626]
[1748791142382,20.4537626,153.75,153.69,16.8007]
[1748791142383,20.4537626,153.76,153.69,89.14715251]
[1748791142582,20.4537626,153.76,153.72,20.4537626]
[1748791143281,26.95751696,153.76,153.72,20.4537626]
[1748791143454,26.95751696,153.76,153.69,49.30717821]
[1748791143649,26.95751696,153.76,153.69,42.8007]
[1748791143855,26.95751696,153.76,153.69,49.3072201]
[1748791144050,6.50375436,153.76,153.73,20.4537626]
[1748791144450,76.18,153.8,153.69,49.3072201]
[1748791144451,10.34,153.8,153.75,20.4537626]
[1748791144763,30.7937626,153.8,153.75,20.4537626]
[1748791145163,6.50252866,153.79,153.75,20.4537626]
[1748791147155,60.74216215,153.82,153.71,16.26427471]
[1748791147362,60.74216215,153.82,153.76,20.4537626]
[1748791147363,20.4537626,153.8,153.76,20.4537626]
[1748791147580,20.4537626,153.79,153.75,20.4537626]
[1748791148765,20.4537626,153.78,153.73,20.4537626]
[1748791149113,26.95698169,153.77,153.72,20.4537626]
[1748791149268,20.4537626,153.76,153.72,20.4537626]
[1748791151088,6.50406504,153.75,153.72,20.4537626]
[1748791151288,6.50406504,153.75,153.71,20.4537626]
[1748791152183,20.4537626,153.77,153.72,20.4537626]
[1748791152373,20.4537626,153.77,153.73,20.4537626]
[1748791152570,28.98964886,153.79,153.73,20.4537626]
[1748791152772,20.4537626,153.77,153.73,20.4537626]
[1748791153087,6.50364203,153.76,153.73,20.4537626]
[1748791154565,6.50334167,153.77,153.73,20.4537626]
[1748791155481,26.95710427,153.77,153.72,20.4537626]
[1748791156188,20.4537626,153.76,153.72,20.4537626]
[1748791156379,6.50406504,153.75,153.72,20.4537626]
[1748791156583,26.95782764,153.75,153.71,20.4537626]
[1748791157186,6.50406504,153.75,153.71,20.4537626]
[1748791157490,6.50406504,153.75,153.72,20.4537626]
[1748791157672,8.08108672,153.76,153.72,20.4537626]
[1748791157880,10.34,153.79,153.74,20.4537626]
[1748791158088,6.50296726,153.78,153.74,20.4537626]
[1748791160392,16.84240979,153.79,153.75,20.4537626]
[1748791160577,26.95617239,153.79,153.75,20.4537626]
[1748791161090,20.4537626,153.78,153.74,20.4537626]
[1748791162593,6.50321909,153.77,153.74,20.4537626]
[1748791162792,20.4537626,153.76,153.72,20.4537626]
[1748791163196,20.4537626,153.75,153.71,20.4537626]
[1748791163487,6.50321909,153.77,153.72,20.4537626]
[1748791163488,20.4537626,153.76,153.72,20.4537626]
[1748791164081,20.4537626,153.75,153.7,26.0]
[1748791164274,20.4537626,153.75,153.71,20.4537626]
[1748791164693,6.50448809,153.74,153.71,20.4537626]
[1748791164890,20.4537626,153.75,153.71,20.4537626]
[1748791166099,20.4537626,153.78,153.74,20.4537626]
[1748791166495,20.4537626,153.77,153.73,20.4537626]
[1748791167381,6.50237336,153.79,153.73,26.95846959]
[1748791167681,6.50237336,153.79,153.76,20.4537626]
[1748791168676,26.95613596,153.79,153.74,6.50447659]
[1748791168876,26.95613596,153.79,153.75,20.4537626]
[1748791172499,20.4537626,153.78,153.74,20.4537626]
[1748791172689,20.4537626,153.78,153.73,60.2937626]
[1748791172885,20.4537626,153.77,153.73,60.2937626]
[1748791173789,26.95739371,153.77,153.72,20.4537626]
[1748791175001,6.50363111,153.77,153.72,20.4537626]
[1748791175305,20.4537626,153.76,153.72,20.4537626]
[1748791175797,20.4537626,153.76,153.69,42.84647369]
[1748791175798,6.50406504,153.75,153.69,82.64647369]
[1748791176105,6.50406504,153.75,153.72,20.4537626]
[1748791176792,6.50406504,153.75,153.69,82.64647369]
[1748791176793,26.95782764,153.75,153.71,20.4537626]
[1748791177593,26.95782764,153.75,153.69,36.34]
[1748791177891,26.95782764,153.75,153.71,20.4537626]
[1748791178095,6.50406504,153.75,153.71,20.4537626]
[1748791178304,26.95782764,153.75,153.71,20.4537626]
[1748791178505,26.95741179,153.76,153.72,20.4537626]
[1748791179799,6.50364919,153.76,153.72,20.4537626]
[1748791180009,26.95741179,153.76,153.72,20.4537626]
[1748791180506,26.95708413,153.77,153.73,20.4537626]
[1748791181216,6.50224261,153.8,153.76,20.4537626]
[1748791181916,6.50224261,153.8,153.77,20.4537626]
[1748791182597,6.50164632,153.81,153.78,20.4537626]
[1748791184699,26.95540892,153.81,153.76,20.4537626]
[1748791185221,6.50164632,153.81,153.74,18.41183734]
[1748791185394,26.95540892,153.81,153.77,20.4537626]
[1748791186224,26.95540892,153.81,153.76,20.4537626]
[1748791186514,20.4537626,153.8,153.76,20.4537626]
[1748791186717,6.50164632,153.81,153.76,20.4537626]
[1748791186891,20.4537626,153.8,153.76,20.4537626]
[1748791188415,6.50237336,153.79,153.76,20.4537626]
[1748791189422,6.50237336,153.79,153.74,30.7737626]
[1748791189423,26.95613596,153.79,153.74,30.7737626]
[1748791190511,43.21206937,153.79,153.74,10.32]
[1748791190707,20.4537626,153.78,153.74,10.32]
[1748791190908,20.4537626,153.78,153.73,20.4537626]
[1748791191633,22.75830677,153.79,153.7,84.27356676]
[1748791191634,20.4537626,153.76,153.7,84.27356676]
[1748791191802,20.4537626,153.76,153.72,20.4537626]
[1748791192213,20.4537626,153.76,153.7,37.9075]
[1748791192214,20.4537626,153.75,153.71,20.4537626]
[1748791192524,6.50448809,153.74,153.71,20.4537626]
[1748791193738,6.50448809,153.74,153.7,36.32]
[1748791193925,6.50448809,153.74,153.71,20.4537626]
[1748791195426,20.4537626,153.76,153.72,20.4537626]
[1748791195905,6.50321909,153.77,153.72,20.4537626]
[1748791196113,20.4537626,153.76,153.72,20.4537626]
[1748791196508,26.95760873,153.76,153.72,20.4537626]
[1748791199028,6.50384613,153.76,153.73,20.4537626]
[1748791200731,20.4537626,153.76,153.72,20.4537626]
[1748791202512,20.4537626,153.77,153.73,20.4537626]
[1748791202713,26.9565588,153.78,153.74,20.4537626]
[1748791203541,6.5027962,153.78,153.74,20.4537626]
[1748791204824,26.9561914,153.79,153.75,20.4537626]
[1748791206237,6.5024288,153.79,153.75,20.4537626]
[1748791206431,26.9561914,153.79,153.75,20.4537626]
[1748791206742,37.27583059,153.8,153.76,20.4537626]
[1748791206939,26.95583059,153.8,153.76,20.4537626]
[1748791207329,26.95583059,153.8,153.74,6.50438416]
[1748791207626,26.95583059,153.8,153.76,20.4537626]
[1748791208341,26.95529045,153.81,153.77,20.4537626]
[1748791208719,8.25138722,153.82,153.77,20.4537626]
[1748791208922,14.7526114,153.82,153.79,20.4537626]
[1748791209331,26.95376146,153.85,153.81,20.4537626]
[1748791210027,20.4537626,153.84,153.8,20.4537626]
[1748791210241,20.4537626,153.83,153.79,20.4537626]
[1748791210543,6.50092581,153.83,153.79,20.4537626]
[1748791210740,6.50092581,153.83,153.77,46.3029581]
[1748791210741,6.50092581,153.83,153.8,20.4537626]
[1748791211335,26.95468841,153.83,153.79,20.4537626]
[1748791211652,26.95468841,153.83,153.78,20.4537626]
[1748791214239,16.24959376,153.85,153.78,20.4537626]
[1748791214442,20.4537626,153.83,153.79,20.4537626]
[1748791215449,26.95474548,153.83,153.79,20.4537626]
[1748791215752,6.50098288,153.83,153.8,20.4537626]
[1748791216249,6.49941505,153.86,153.8,20.4537626]
[1748791216426,20.4537626,153.85,153.81,20.4537626]
[1748791216848,20.4537626,153.84,153.8,20.4537626]
[1748791217037,6.49941505,153.86,153.8,20.4537626]
[1748791217238,26.95403003,153.84,153.8,20.4537626]
[1748791217646,6.50026743,153.84,153.8,20.4537626]
[1748791220036,26.95403003,153.84,153.77,39.8]
[1748791220357,20.4537626,153.82,153.78,20.4537626]
[1748791220727,22.75091745,153.84,153.78,20.4537626]
[1748791220936,20.4537626,153.83,153.79,20.4537626]
[1748791221456,26.95403003,153.84,153.8,20.4537626]
[1748791221640,26.95403003,153.84,153.77,46.30318867]
[1748791221831,20.4537626,153.82,153.78,20.4537626]
[1748791222031,6.50152785,153.81,153.78,20.4537626]
[1748791222760,26.95480817,153.83,153.79,20.4537626]
[1748791225050,26.95480817,153.83,153.78,20.4537626]
[1748791226664,26.95480817,153.83,153.79,20.4537626]
[1748791227237,6.50104557,153.83,153.79,20.4537626]
[1748791227640,26.95415486,153.84,153.79,20.4537626]
[1748791228446,6.49941505,153.86,153.82,20.4537626]
[1748791228660,6.49941505,153.86,153.83,20.4537626]
[1748791228860,26.95317765,153.86,153.82,20.4537626]
[1748791230560,6.49941505,153.86,153.82,20.4537626]
[1748791230765,28.4884011,153.87,153.82,20.4537626]
[1748791231069,26.9528011,153.87,153.82,20.4537626]
[1748791231361,26.9528011,153.87,153.83,20.4537626]
[1748791231566,6.4990385,153.87,153.83,20.4537626]
[1748791232364,26.95191062,153.89,153.85,20.4537626]
[1748791232962,20.4537626,153.88,153.84,20.4537626]
[1748791233469,26.95191062,153.89,153.85,20.4537626]
[1748791233674,6.49814802,153.89,153.85,20.4537626]
[1748791233861,6.49814802,153.89,153.86,20.4537626]
[1748791234056,6.49814802,153.89,153.81,13.06502785]
[1748791234257,26.95191062,153.89,153.85,20.4537626]
[1748791234459,26.95191062,153.89,153.84,20.4537626]
[1748791237070,6.49814802,153.89,153.85,20.4537626]
[1748791237463,20.4537626,153.9,153.86,20.4537626]
[1748791238272,20.4537626,153.89,153.85,20.4537626]
[1748791238982,20.4537626,153.88,153.84,20.4537626]
[1748791239479,26.95271049,153.88,153.84,20.4537626]
[1748791239880,26.95208279,153.89,153.85,20.4537626]
[1748791241680,6.49832019,153.89,153.85,20.4537626]
[1748791241880,6.49832019,153.89,153.86,20.4537626]
[1748791242784,26.95160254,153.9,153.86,20.4537626]
[1748791242962,20.4537626,153.91,153.87,20.4537626]
[1748791243471,26.95151242,153.9,153.86,20.4537626]
[1748791244776,26.95151242,153.9,153.81,22.81720504]
[1748791244777,6.49774982,153.9,153.87,20.4537626]
[1748791245686,6.49774982,153.9,153.84,26.0]
[1748791245983,6.49774982,153.9,153.87,20.4537626]
[1748791247285,26.95151242,153.9,153.86,20.4537626]
[1748791247983,26.95151242,153.9,153.87,20.4537626]
[1748791247984,6.49774982,153.9,153.87,20.4537626]
[1748791248187,26.95151242,153.9,153.86,20.4537626]
[1748791248383,6.49688149,153.92,153.88,20.4537626]
[1748791248686,6.4966162,153.93,153.9,20.4537626]
[1748791250087,26.94992891,153.94,153.9,20.4537626]
[1748791250386,6.49616631,153.94,153.91,20.4537626]
[1748791251089,31.2763486,153.95,153.91,20.4537626]
[1748791252989,20.4537626,153.93,153.87,26.0]
[1748791253299,20.4537626,153.93,153.89,20.4537626]
[1748791254182,6.49688149,153.92,153.89,20.4537626]
[1748791257101,26.95064409,153.92,153.88,20.4537626]
[1748791257276,20.4537626,153.91,153.87,20.4537626]
[1748791257474,20.4537626,153.91,153.86,39.76]
[1748791257475,26.95064409,153.92,153.86,39.76]
[1748791257787,20.4537626,153.91,153.87,20.4537626]
[1748791258392,6.49772579,153.9,153.87,20.4537626]
[1748791260899,20.4537626,153.89,153.85,10.3]
[1748791261121,20.4537626,153.88,153.85,20.4537626]
[1748791261292,6.49772579,153.9,153.81,10.3]
[1748791261293,6.49772579,153.9,153.87,20.4537626]